bitfinex/quotes_ETHUSD_20241116
["timestamp","ask_amount","ask_price","bid_price","bid_amount"]
[1731732652645,0.06530237,3130.6,3130.2,3.19468]
[1731732653053,0.06530237,3130.6,3130.0,3.99525]
[1731732653263,0.06530237,3130.6,3130.3,3.19457]
[1731732653933,0.06530237,3130.6,3130.4,3.19439]
[1731732654178,0.06530237,3130.6,3130.3,3.19457]
[1731732654577,0.06530237,3130.6,3130.4,3.19446]
[1731732654890,8.93,3131.9,3130.5,3.19437]
[1731732654891,0.82356092,3131.1,3130.5,3.19437]
[1731732655040,4.01737092,3131.1,3130.5,3.19437]
[1731732655375,0.0654665,3131.0,3130.5,3.19437]
[1731732655535,0.0654665,3131.0,3130.6,3.19427]
[1731732655875,0.0654665,3131.0,3130.3,3.19457]
[1731732655876,0.7585,3130.9,3130.3,3.19457]
[1731732656070,0.06506092,3130.8,3130.4,3.19446]
[1731732656273,0.13045519,3130.8,3130.4,3.19446]
[1731732657460,0.7585,3130.7,3129.8,0.65140361]
[1731732657673,0.7585,3130.5,3130.1,3.19478]
[1731732658150,0.06527033,3130.4,3130.1,3.19478]
[1731732659891,0.06527033,3130.4,3129.9,6.19497]
[1731732660186,0.06527033,3130.4,3129.9,3.19497]
[1731732660377,0.06527033,3130.4,3129.7,3.19518]
[1731732660378,3.25965092,3130.3,3129.7,3.19518]
[1731732660559,0.06506092,3130.3,3129.7,3.19518]
[1731732660765,0.06517683,3130.2,3129.7,3.19518]
[1731732661086,0.06517683,3130.2,3129.9,3.19498]
[1731732661786,0.06517683,3130.2,3130.1,3.19478]
[1731732661953,0.7585,3130.5,3130.1,3.19478]
[1731732662150,0.06513113,3130.2,3130.1,3.19478]
[1731732662455,0.7585,3130.5,3130.3,3.19457]
[1731732662959,0.7585,3130.5,3129.7,3.19513]
[1731732662960,0.06520415,3130.4,3129.7,3.19513]
[1731732663164,0.06520415,3130.4,3129.9,3.19491]
[1731732664393,0.7585,3130.3,3129.8,3.19508]
[1731732664685,0.7585,3130.3,3129.5,3.0]
[1731732664686,3.19481,3130.1,3129.5,3.0]
[1731732664900,0.82356092,3130.0,3129.5,6.19539]
[1731732665083,0.88863479,3130.0,3129.5,6.19539]
[1731732665983,4.08354479,3130.0,3129.3,7.61390994]
[1731732666214,4.08354479,3130.0,3129.3,6.83070994]
[1731732666502,3.19499,3129.9,3129.3,0.63516994]
[1731732666675,3.26016092,3129.8,3129.2,0.33340496]
[1731732666870,3.26016092,3129.8,3129.3,3.0]
[1731732666871,0.13003891,3129.8,3129.3,3.0]
[1731732667272,3.32515891,3129.8,3129.3,3.0]
[1731732667490,0.13003891,3129.8,3129.3,3.19557]
[1731732667689,0.13003891,3129.8,3129.4,3.19546]
[1731732667903,0.06497799,3129.8,3129.4,3.19546]
[1731732668199,0.06497799,3129.8,3129.5,3.19539]
[1731732668405,0.06506092,3129.9,3129.5,3.19539]
[1731732668571,0.06489971,3129.7,3129.5,3.19539]
[1731732668766,0.06506092,3129.9,3129.5,3.19539]
[1731732669073,0.82356092,3130.0,3129.5,3.19539]
[1731732669272,0.06492915,3129.8,3129.6,3.43406634]
[1731732669468,0.82356092,3130.0,3129.6,3.43406634]
[1731732669673,0.82356092,3130.0,3129.7,0.23881634]
[1731732669975,0.82356092,3130.0,3129.6,3.19525]
[1731732670190,0.7585,3130.0,3129.6,3.19525]
[1731732670397,0.06506092,3130.2,3129.7,3.19518]
[1731732670571,0.7695,3130.3,3129.9,3.19491]
[1731732671180,0.06506092,3130.2,3129.9,3.19491]
[1731732671694,6.10151403,3131.0,3129.8,0.23878805]
[1731732671695,0.7695,3130.8,3130.4,3.19446]
[1731732672012,0.7695,3130.8,3130.5,0.23878805]
[1731732672168,0.7695,3130.8,3130.4,3.19446]
[1731732672369,0.7695,3130.8,3130.5,3.43308624]
[1731732672596,0.86106092,3131.1,3130.7,3.19417]
[1731732672989,0.86106092,3131.1,3130.5,6.38867]
[1731732673195,0.86106092,3131.1,3130.6,0.23870875]
[1731732673500,0.86106092,3131.1,3130.6,3.1942]
[1731732673697,0.86106092,3131.1,3130.7,0.23869374]
[1731732673881,0.86106092,3131.1,3130.5,3.1943]
[1731732674287,0.86106092,3131.1,3130.6,0.23869847]
[1731732674488,0.86106092,3131.1,3130.5,3.1943]
[1731732674719,0.86106092,3131.1,3130.6,0.23870067]
[1731732674891,0.86106092,3131.1,3130.7,0.23870067]
[1731732675091,0.86106092,3131.1,3130.5,3.1943]
[1731732675290,0.86106092,3131.1,3130.6,0.23869456]
[1731732675492,0.86106092,3131.1,3130.7,0.23869456]
[1731732675799,0.86106092,3131.1,3130.5,3.1943]
[1731732676004,0.86106092,3131.1,3130.6,0.23868604]
[1731732676217,0.86106092,3131.1,3130.7,3.43282604]
[1731732676417,0.86106092,3131.1,3130.6,3.19426]
[1731732676572,0.86106092,3131.1,3130.7,3.43281472]
[1731732676779,0.86106092,3131.1,3130.6,3.19426]
[1731732677073,0.86106092,3131.1,3130.7,0.23866809]
[1731732677277,0.86106092,3131.1,3130.6,3.19426]
[1731732677725,4.05482092,3131.1,3130.7,0.23864461]
[1731732678011,4.05482092,3131.1,3130.5,3.19437]
[1731732678012,1.26654301,3131.1,3130.5,3.19437]
[1731732678216,0.86106092,3131.1,3130.6,0.23865171]
[1731732678423,0.86106092,3131.1,3130.5,3.19437]
[1731732678424,4.05483092,3131.1,3130.5,3.19437]
[1731732678618,4.05483092,3131.1,3130.6,0.23865145]
[1731732678915,4.05483092,3131.1,3130.4,3.19439]
[1731732679115,3.194,3130.9,3130.5,0.238654]
[1731732679300,4.05483092,3131.1,3130.4,3.19446]
[1731732679301,4.46031401,3131.1,3130.4,3.19446]
[1731732679528,4.46031401,3131.1,3130.5,0.23866146]
[1731732679813,4.46031401,3131.1,3130.6,0.23866146]
[1731732680017,4.46031401,3131.1,3130.4,3.19446]
[1731732680220,0.86106092,3131.1,3130.6,3.19421]
[1731732680521,0.796,3131.1,3130.6,3.19421]
[1731732680719,0.06506092,3131.0,3130.6,3.19421]
[1731732680920,0.06506092,3131.0,3130.7,0.23864233]
[1731732682311,0.06031061,3130.9,3130.7,0.23864233]
[1731732682915,0.06031061,3130.9,3130.6,3.19421]
[1731732683428,0.796,3131.1,3130.6,3.19421]
[1731732683610,0.06027411,3130.8,3130.7,0.23860755]
[1731732683862,0.796,3131.1,3130.7,0.23860755]
[1731732684131,0.796,3131.1,3130.6,3.19421]
[1731732684331,0.0603471,3131.0,3130.7,0.23860407]
[1731732684488,0.0603471,3131.0,3130.6,3.19421]
[1731732684822,0.0603471,3131.0,3130.7,0.23859565]
[1731732684985,0.0603471,3131.0,3130.6,3.19421]
[1731732685187,0.12540802,3131.0,3130.6,3.19421]
[1731732685487,0.0603471,3131.0,3130.6,3.19421]
[1731732687021,0.0603471,3131.0,3130.4,3.1944]
[1731732687227,0.0603471,3131.0,3130.5,3.19436]
[1731732688906,0.0603471,3131.0,3130.6,3.19425]
[1731732689333,0.0603471,3131.0,3130.7,3.19413]
[1731732690340,0.0603471,3131.0,3130.4,3.25832172]
[1731732690626,0.0603471,3131.0,3130.6,3.1942]
[1731732691539,0.0603471,3131.0,3130.8,3.19406]
[1731732692892,0.8277,3131.4,3130.9,3.25783695]
[1731732693095,0.8277,3131.8,3131.3,3.19346]
[1731732693301,0.8277,3131.8,3131.5,3.19335]
[1731732693805,0.06506092,3131.9,3131.5,3.19335]
[1731732694207,0.06506092,3132.0,3131.6,3.19324]
[1731732694804,0.06506092,3132.0,3131.4,3.19339]
[1731732695629,0.06506092,3132.0,3131.5,3.19329]
[1731732695840,0.06506092,3132.0,3131.3,3.19353]
[1731732696008,0.06506092,3132.0,3131.5,6.38652]
[1731732696212,0.06506092,3132.0,3131.5,3.19325]
[1731732697303,0.05481079,3131.9,3131.5,3.19325]
[1731732699128,0.05481079,3131.9,3131.5,3.19335]
[1731732699444,0.8195,3132.3,3131.8,3.19305]
[1731732699642,0.88456092,3132.3,3131.8,3.19305]
[1731732699845,0.88456092,3132.5,3131.9,3.19287]
[1731732700338,0.88456092,3132.5,3132.0,3.19282]
[1731732700639,0.8195,3132.5,3132.1,3.19268]
[1731732700811,0.06506092,3132.7,3132.1,0.7816]
[1731732700812,0.88456092,3132.7,3132.1,0.7816]
[1731732701008,0.88456092,3132.7,3132.3,3.19252]
[1731732701245,0.06506092,3132.7,3132.2,3.19255]
[1731732701426,0.8195,3132.9,3132.2,3.19255]
[1731732701427,0.88456092,3132.9,3132.4,3.19239]
[1731732701737,0.401133,3132.8,3132.4,3.19243]
[1731732701939,0.88456092,3132.9,3132.2,3.19264]
[1731732701940,0.8195,3132.9,3132.2,3.19264]
[1731732702138,0.8195,3132.9,3132.5,3.19226]
[1731732702308,0.8195,3132.9,3132.6,3.19223]
[1731732702511,3.1923,3132.6,3132.0,3.0]
[1731732702714,3.1923,3132.6,3131.9,3.19291]
[1731732702715,3.19269,3132.2,3131.9,0.64534451]
[1731732703026,3.25781092,3132.1,3131.6,3.0]
[1731732703249,0.06506092,3132.3,3131.6,0.06385781]
[1731732703429,0.88456092,3132.7,3131.8,0.7816]
[1731732703632,1.29222301,3132.7,3132.1,3.19264]
[1731732704417,1.29222301,3132.7,3132.2,3.19262]
[1731732704633,1.29222301,3132.7,3132.0,3.19284]
[1731732704802,4.07670092,3132.7,3132.0,3.19284]
[1731732705341,0.88456092,3132.7,3132.0,3.19284]
[1731732705516,3.19224,3132.6,3132.0,3.19284]
[1731732705846,0.06506092,3132.5,3132.0,3.19284]
[1731732706012,3.25741092,3132.5,3131.8,3.97464]
[1731732706216,3.25741092,3132.5,3131.8,3.19304]
[1731732706413,0.06506092,3132.5,3131.7,3.8173602]
[1731732706620,0.06506092,3132.6,3132.0,3.19284]
[1731732706805,3.66505101,3132.6,3131.9,3.19294]
[1731732707201,3.66505101,3132.6,3131.7,3.8173602]
[1731732707508,3.19254,3132.4,3131.7,3.8173602]
[1731732707822,0.06506092,3132.3,3131.7,3.8173602]
[1731732708632,3.25760092,3132.3,3131.7,3.8173602]
[1731732709220,7.08432889,3132.3,3131.6,3.0]
[1731732709414,3.19275,3132.1,3131.6,3.0]
[1731732709628,0.06506092,3132.1,3131.4,3.0]
[1731732709838,0.06506092,3132.1,3131.6,3.0]
[1731732710034,0.06506092,3132.1,3131.7,3.19308]
[1731732710240,0.8302,3132.2,3131.7,3.19308]
[1731732710411,0.8302,3132.2,3131.6,6.19318]
[1731732710744,0.8302,3132.2,3132.0,3.19282]
[1731732710944,0.8302,3132.5,3132.0,3.19282]
[1731732711150,0.8302,3132.5,3132.1,3.19272]
[1731732711720,0.06506092,3132.4,3131.9,3.1929]
[1731732712014,0.8302,3132.5,3132.0,3.1928]
[1731732712213,0.05510384,3132.3,3132.1,3.1927]
[1731732712420,0.05333444,3132.4,3132.1,3.1927]
[1731732712745,0.8302,3132.5,3132.1,3.1927]
[1731732712927,0.05329797,3132.3,3132.1,3.1927]
[1731732713133,0.8302,3132.5,3132.1,3.1927]
[1731732713306,0.05326151,3132.2,3132.1,3.1927]
[1731732713648,0.8302,3132.5,3132.3,3.19251]
[1731732713810,0.8302,3132.8,3132.3,3.19251]
[1731732714926,0.8302,3132.8,3132.5,3.19233]
[1731732715245,0.89526092,3133.0,3132.6,3.1922]
[1731732715422,0.89526092,3133.0,3132.5,3.19233]
[1731732715423,0.8302,3133.0,3132.5,3.19233]
[1731732715605,0.8302,3133.0,3132.7,3.19212]
[1731732716103,0.06506092,3133.2,3132.7,3.19206]
[1731732716415,0.06506092,3133.3,3132.7,3.19206]
[1731732716633,0.06506092,3133.3,3132.9,3.19191]
[1731732718070,0.06506092,3133.3,3132.9,3.19188]
[1731732718932,0.8302,3133.6,3133.3,3.19145]
[1731732719132,0.8302,3133.6,3133.4,3.19139]
[1731732719368,0.8302,3133.9,3133.4,3.19139]
[1731732719547,0.8302,3133.6,3133.0,3.19176]
[1731732719876,0.06506092,3133.5,3133.0,3.19176]
[1731732720245,3.25638092,3133.5,3132.9,3.19188]
[1731732720435,0.8302,3132.8,3132.2,3.19264]
[1731732720636,0.89526092,3132.8,3132.4,0.62852347]
[1731732720862,0.8302,3132.8,3132.5,3.19227]
[1731732721337,0.06506092,3132.7,3132.4,0.62852347]
[1731732721673,0.8302,3132.5,3131.9,0.65245203]
[1731732721997,0.06506092,3132.4,3131.6,3.97741]
[1731732722133,0.8302,3131.9,3130.9,3.19393]
[1731732722330,3.19323,3131.7,3130.9,3.82411252]
[1731732722564,3.19323,3131.7,3131.3,3.19354]
[1731732722565,0.06506092,3131.7,3131.3,3.19354]
[1731732722954,0.06506092,3131.7,3131.1,3.19368]
[1731732723155,0.06506092,3131.7,3131.2,3.19358]
[1731732723355,0.06506092,3131.7,3131.3,3.19352]
[1731732723740,0.06506092,3131.7,3131.1,3.19368]
[1731732723970,0.06506092,3131.7,3131.2,3.19358]
[1731732724338,3.25821092,3131.7,3131.0,3.1938]
[1731732724565,0.51318285,3131.7,3131.1,3.0]
[1731732724749,0.06506092,3131.7,3131.2,3.19362]
[1731732726555,0.8302,3131.9,3131.6,3.19325]
[1731732726961,0.8302,3131.9,3131.4,3.19337]
[1731732727156,0.0530459,3131.8,3131.4,3.19337]
[1731732727395,0.0530459,3131.8,3131.6,3.19321]
[1731732728360,0.0530459,3131.8,3131.7,3.19315]
[1731732728896,0.8302,3132.2,3131.7,3.19315]
[1731732729042,0.84016092,3132.5,3132.0,3.19283]
[1731732729246,0.05318543,3132.1,3132.0,3.19283]
[1731732729441,0.84016092,3132.5,3132.0,3.19283]
[1731732729683,0.84016092,3132.5,3131.4,0.7842]
[1731732729684,0.84016092,3132.5,3132.1,3.19273]
[1731732730214,0.84016092,3132.5,3131.5,0.62669533]
[1731732730494,0.7751,3132.5,3131.5,0.62669533]
[1731732730661,0.7751,3132.5,3132.1,3.19273]
[1731732733792,0.87956092,3132.8,3132.3,3.19252]
[1731732734007,0.8145,3132.8,3132.3,3.19252]
[1731732734853,0.06506092,3132.9,3132.2,3.0]
[1731732735056,0.8145,3133.1,3132.2,3.0]
[1731732735057,0.06506092,3133.0,3132.2,3.0]
[1731732735253,3.09978388,3133.8,3132.7,3.19203]
[1731732735254,0.8145,3133.4,3132.7,3.19203]
[1731732735481,0.06506092,3133.3,3132.8,3.19199]
[1731732735680,3.19177,3133.1,3132.5,3.0]
[1731732735885,0.06506092,3133.0,3132.5,6.19233]
[1731732736094,0.11504228,3133.0,3132.5,6.19233]
[1731732736304,0.11504228,3133.0,3132.6,3.19222]
[1731732736607,0.04998136,3133.0,3132.6,3.19222]
[1731732737568,0.8145,3132.9,3132.2,3.19261]
[1731732737773,0.06506092,3132.8,3132.0,3.97871]
[1731732738003,0.11496937,3132.8,3132.2,3.1926]
[1731732738300,3.30699937,3132.8,3132.2,3.1926]
[1731732739309,4.03833231,3132.8,3132.0,3.97871]
[1731732739455,3.19214,3132.7,3132.1,6.19273]
[1731732739656,0.06506092,3132.6,3132.1,6.19273]
[1731732739897,0.11489646,3132.6,3132.1,6.19273]
[1731732740097,0.04983554,3132.6,3132.3,3.19246]
[1731732740316,0.04983554,3132.6,3132.5,3.19233]
[1731732740524,0.8145,3133.2,3132.6,3.19214]
[1731732740674,0.06506092,3133.1,3132.6,3.19214]
[1731732741011,0.11507872,3133.1,3132.6,3.19214]
[1731732741172,0.11507872,3133.1,3132.4,3.0]
[1731732741380,3.19193,3132.9,3132.0,3.0]
[1731732741613,0.8145,3132.7,3132.0,6.19284]
[1731732741918,0.06506092,3132.6,3132.0,6.19284]
[1731732742116,0.11489646,3132.6,3132.0,6.19284]
[1731732743178,0.11489646,3132.6,3132.2,3.19262]
[1731732743692,0.11489646,3132.6,3132.3,3.19253]
[1731732743907,0.04983554,3132.6,3132.3,3.19253]
[1731732744525,0.04983554,3132.6,3132.5,3.19233]
[1731732744877,0.87956092,3133.1,3132.6,3.19221]
[1731732745312,0.04997264,3133.0,3132.6,3.19221]
[1731732746614,0.04997264,3133.0,3132.7,3.19207]
[1731732746923,0.04997264,3133.0,3132.9,3.19193]
[1731732747080,0.04997264,3133.0,3132.5,3.19232]
[1731732747278,4.00643,3132.9,3132.3,6.19247]
[1731732747480,0.06506092,3132.8,3132.4,0.23808865]
[1731732747883,0.04990447,3132.7,3132.4,0.23808865]
[1731732748288,0.06506092,3132.8,3132.3,3.19247]
[1731732748540,0.06506092,3132.8,3132.4,0.23811501]
[1731732748820,0.06506092,3132.8,3132.0,0.7859]
[1731732748821,0.04986801,3132.6,3132.0,3.97874]
[1731732748981,0.06506092,3132.6,3132.1,3.19273]
[1731732749184,0.04983155,3132.5,3132.2,3.19263]
[1731732750022,0.04983155,3132.5,3132.3,3.19247]
[1731732750317,0.06506092,3132.8,3132.3,3.19247]
[1731732750520,0.04977925,3132.4,3132.3,3.19247]
[1731732750687,0.06506092,3132.8,3132.3,3.19247]
[1731732751021,0.06506092,3132.8,3132.1,3.2565778]
[1731732751022,0.47221801,3132.8,3132.1,3.19273]
[1731732751187,3.24207863,3132.7,3132.1,3.19273]
[1731732751574,3.24207863,3132.7,3131.4,6.6363708]
[1731732751575,0.8207,3132.1,3131.5,3.19329]
[1731732751723,4.07853092,3132.1,3131.5,3.19329]
[1731732752093,0.04961833,3132.0,3131.5,3.19329]
[1731732752284,0.04961833,3132.0,3131.6,3.19325]
[1731732752809,3.24255833,3132.0,3131.5,3.0]
[1731732752982,3.24255833,3132.0,3131.5,3.19335]
[1731732752983,0.04961833,3132.0,3131.5,3.19335]
[1731732754118,0.04961833,3132.0,3131.6,3.19324]
[1731732755185,0.04961833,3132.0,3131.5,3.25720958]
[1731732755418,3.19247,3132.4,3131.7,3.19308]
[1731732755419,0.7729,3132.4,3131.7,3.19308]
[1731732755766,0.7729,3132.4,3132.0,3.19282]
[1731732756218,0.7729,3132.4,3132.1,3.19273]
[1731732756556,0.7729,3132.4,3132.0,3.19282]
[1731732757114,0.04965484,3132.3,3132.1,3.19273]
[1731732757326,0.04965484,3132.3,3132.0,3.19282]
[1731732757625,0.04965484,3132.3,3131.8,3.19296]
[1731732757957,0.11471576,3132.3,3131.8,3.19296]
[1731732758139,0.04965484,3132.3,3131.8,3.19296]
[1731732759936,0.04965484,3132.3,3131.9,3.19286]
[1731732761225,0.04965484,3132.3,3132.0,3.19277]
[1731732761424,0.04965484,3132.3,3132.1,3.19273]
[1731732761721,0.04965484,3132.3,3132.2,3.19264]
[1731732762033,0.83796092,3132.7,3132.2,3.19264]
[1731732762247,0.04965484,3132.3,3132.2,3.19264]
[1731732762451,0.83796092,3132.7,3132.2,3.19264]
[1731732762633,0.04966752,3132.3,3132.2,3.19264]
[1731732762841,0.83796092,3132.7,3132.2,3.19264]
[1731732763036,0.04966039,3132.3,3132.2,3.19264]
[1731732763246,0.83796092,3132.7,3132.2,3.19264]
[1731732763445,0.04966039,3132.3,3132.2,3.19264]
[1731732763676,0.83796092,3132.7,3132.2,3.19264]
[1731732764169,0.04979909,3132.6,3132.0,3.19284]
[1731732764356,0.7729,3132.4,3131.7,3.19314]
[1731732764559,3.30730984,3132.3,3131.7,3.19314]
[1731732764864,3.30730984,3132.3,3131.8,3.19295]
[1731732764865,0.11474984,3132.3,3131.8,3.19295]
[1731732765371,0.11474984,3132.3,3132.0,0.62561618]
[1731732765372,0.04968892,3132.3,3132.0,0.62561618]
[1731732767039,0.04968892,3132.3,3131.9,3.19293]
[1731732767631,0.04968892,3132.3,3131.7,3.19314]
[1731732767632,0.04968892,3132.3,3132.0,3.19284]
[1731732768251,0.04968892,3132.3,3132.2,3.19264]
[1731732768572,0.7729,3132.7,3132.3,3.19252]
[1731732768885,0.7729,3132.7,3132.2,3.19264]
[1731732769744,3.9651,3132.7,3132.1,3.0]
[1731732769950,0.7856,3132.3,3131.8,6.19302]
[1731732770174,0.85066092,3132.3,3131.8,6.19302]
[1731732770600,0.7856,3132.3,3131.8,6.19302]
[1731732770769,0.7856,3132.3,3131.8,6.25687334]
[1731732772004,0.7856,3132.3,3131.6,1.11899947]
[1731732772296,3.1928,3132.1,3131.6,3.33319947]
[1731732772499,0.06506092,3132.2,3131.6,3.33319947]
[1731732772655,0.04959456,3132.0,3131.7,3.0]
[1731732772860,3.25770092,3132.2,3131.7,3.0]
[1731732773097,0.04955809,3131.9,3131.7,3.0]
[1731732773401,3.25770092,3132.2,3131.6,3.52643947]
[1731732773402,0.83512161,3131.8,3131.6,0.33319947]
[1731732781178,0.04952161,3131.8,3131.7,3.97895]
[1731732781417,0.06506092,3132.2,3131.8,3.19304]
[1731732781650,0.7856,3132.3,3131.8,3.19304]
[1731732781777,0.06506092,3132.2,3131.8,3.19304]
[1731732782893,0.85066092,3132.3,3131.8,3.19304]
[1731732783216,0.8006,3132.6,3132.0,3.0]
[1731732783533,0.8006,3132.6,3132.2,3.19264]
[1731732784419,4.05765092,3132.9,3132.3,3.19251]
[1731732784718,4.05765092,3132.9,3132.2,4.00574]
[1731732785376,0.8006,3132.8,3132.0,6.19282]
[1731732785626,0.06506092,3132.7,3132.0,6.19282]
[1731732786116,3.19251,3132.4,3131.8,3.0]
[1731732786313,0.06506092,3132.3,3131.7,3.8131]
[1731732786514,0.06506092,3132.3,3131.9,3.0]
[1731732786733,0.06506092,3132.3,3131.9,3.19294]
[1731732786894,0.06506092,3132.4,3131.9,3.0]
[1731732787079,0.04963818,3132.2,3131.9,3.0]
[1731732787280,0.06506092,3132.4,3131.9,6.19288]
[1731732787480,0.04960171,3132.1,3131.9,6.19288]
[1731732787810,0.06506092,3132.4,3131.9,6.19288]
[1731732787811,0.04956524,3132.0,3131.9,6.19288]
[1731732787980,0.06506092,3132.4,3131.9,6.19288]
[1731732788194,0.04967465,3132.3,3131.9,6.19288]
[1731732788636,0.04967465,3132.3,3132.0,3.19283]
[1731732790311,0.86566092,3132.5,3132.0,3.19283]
[1731732790493,0.04963818,3132.2,3132.0,3.19283]
[1731732790837,0.04959458,3132.1,3132.0,3.19283]
[1731732791041,0.86566092,3132.5,3132.0,3.19283]
[1731732791198,0.8006,3132.5,3132.1,3.19274]
[1731732791397,0.86566092,3132.5,3131.9,6.19288]
[1731732792815,0.86566092,3132.5,3132.0,3.19283]
[1731732794743,0.86566092,3132.5,3131.9,3.0]
[1731732795537,0.86566092,3132.5,3132.0,3.19277]
[1731732795897,0.8006,3132.5,3132.2,3.19256]
[1731732799672,0.8006,3132.5,3132.0,3.19277]
[1731732800046,0.8006,3132.5,3132.0,6.38554]
[1731732800236,0.8006,3132.5,3132.1,3.1927]
[1731732800638,0.8006,3132.5,3132.0,3.19277]
[1731732800839,0.8006,3132.5,3131.9,3.19294]
[1731732801034,3.25752092,3132.4,3131.8,6.19298]
[1731732801240,0.06506092,3132.4,3131.9,3.19293]
[1731732802383,0.04969525,3132.3,3131.9,3.19293]
[1731732802731,0.04969525,3132.3,3132.0,3.19283]
[1731732803169,0.86566092,3132.5,3132.0,3.19283]
[1731732803358,0.04863551,3132.2,3131.9,3.19293]
[1731732803560,0.86566092,3132.5,3132.0,3.19283]
[1731732803745,0.04859904,3132.1,3132.0,3.19283]
[1731732803951,0.86566092,3132.5,3132.0,3.19283]
[1731732804378,0.04870844,3132.4,3132.0,3.19283]
[1731732807772,0.04870844,3132.4,3131.8,6.52623427]
[1731732807971,3.19262,3132.3,3131.8,3.33319427]
[1731732808373,0.82294026,3132.2,3131.8,3.0]
[1731732808614,0.82294026,3132.2,3131.7,3.82939848]
[1731732808785,0.82294026,3132.2,3131.8,0.33320457]
[1731732808979,0.61506092,3132.1,3131.9,0.23896946]
[1731732809172,0.61506092,3132.1,3131.8,0.33320457]
[1731732809173,4.00771,3132.0,3131.8,0.33320457]
[1731732809379,0.1135783,3131.9,3131.8,0.33320457]
[1731732809676,0.1135783,3131.9,3131.8,0.57218135]
[1731732810777,0.04851738,3131.9,3131.8,0.57218135]
[1731732813599,0.04851738,3131.9,3131.8,3.76523135]
[1731732813802,0.8148,3132.3,3131.8,3.52625457]
[1731732813991,0.04858085,3132.2,3131.8,3.52625457]
[1731732814188,0.8148,3132.3,3131.8,3.52625457]
[1731732814373,0.04858085,3132.2,3131.8,3.52625457]
[1731732814578,0.8148,3132.3,3131.8,3.52625457]
[1731732814783,0.04858085,3132.2,3131.8,3.52625457]
[1731732815006,0.8148,3132.3,3131.8,3.52625457]
[1731732815177,0.04854438,3132.1,3131.8,3.52625457]
[1731732815503,3.1909,3134.0,3133.1,0.7514]
[1731732815678,0.01,3134.8,3133.1,0.7514]
[1731732815679,3.1907,3134.2,3133.5,3.1913]
[1731732815880,4.35827326,3134.3,3133.5,3.1913]
[1731732816081,4.35827326,3134.3,3133.6,3.1912]
[1731732816376,3.19063,3134.2,3133.4,3.19138]
[1731732816623,3.19071,3134.1,3133.4,3.0]
[1731732817003,0.55,3133.7,3133.1,3.94311]
[1731732817220,3.19115,3133.7,3133.1,3.0]
[1731732817434,0.0394685,3133.6,3133.1,3.0]
[1731732818009,0.0394685,3133.6,3133.1,6.19163]
[1731732818180,3.19101,3133.9,3133.1,6.19163]
[1731732818519,0.55,3133.6,3133.1,6.19163]
[1731732818673,0.55,3133.6,3133.1,3.19163]
[1731732818874,0.0389223,3133.5,3133.1,3.19163]
[1731732820979,0.0389223,3133.5,3133.0,3.0]
[1731732821217,0.0389223,3133.5,3133.0,6.19174]
[1731732821418,0.0389223,3133.5,3133.1,3.19166]
[1731732821994,0.0389223,3133.5,3133.3,3.19151]
[1731732822388,0.0389223,3133.5,3133.3,3.19148]
[1731732823295,0.0389223,3133.5,3133.4,3.19142]
[1731732823606,0.8148,3133.7,3133.4,3.19142]
[1731732823975,0.03905457,3133.6,3133.4,3.19142]
[1731732824176,0.55,3133.9,3133.4,3.19142]
[1731732824425,0.03912743,3133.8,3133.4,3.19142]
[1731732824926,0.03912743,3133.8,3133.5,3.19131]
[1731732827020,0.03912743,3133.8,3133.3,3.19143]
[1731732827317,0.03912743,3133.8,3133.5,3.19128]
[1731732828024,0.03912743,3133.8,3133.6,3.19121]
[1731732829634,0.8148,3134.0,3133.6,3.19121]
[1731732829923,0.03922011,3133.7,3133.6,3.19121]
[1731732830126,0.8148,3134.0,3133.6,3.19121]
[1731732830291,0.03922011,3133.7,3133.6,3.19121]
[1731732830506,0.8148,3134.0,3133.6,3.19121]
[1731732830846,0.03929297,3133.9,3133.6,3.19121]
[1731732833048,0.03929297,3133.9,3133.5,3.19128]
[1731732833563,0.03929297,3133.9,3133.6,3.19115]
[1731732834049,0.03929297,3133.9,3133.7,3.1911]
[1731732834313,0.03929297,3133.9,3133.6,3.19115]
[1731732834766,0.03929297,3133.9,3133.7,3.1911]
[1731732836566,0.03929297,3133.9,3133.8,3.19101]
[1731732836861,0.03929297,3133.9,3133.6,3.19116]
[1731732837068,0.03929297,3133.9,3133.5,3.19122]
[1731732837225,0.03929297,3133.9,3133.7,3.19104]
[1731732839471,0.03929297,3133.9,3133.5,3.19122]
[1731732839630,0.55,3133.6,3133.0,3.19172]
[1731732839978,0.8058,3133.2,3132.6,3.19219]
[1731732840178,0.8058,3133.2,3132.4,3.19243]
[1731732840179,0.8058,3133.2,3132.8,3.192]
[1731732840355,0.03904028,3133.1,3132.7,3.19204]
[1731732840556,0.03904028,3133.1,3132.4,0.7667]
[1731732840756,0.55,3133.0,3132.5,3.19231]
[1731732841063,0.58900383,3133.0,3132.5,3.19231]
[1731732841264,3.78082383,3133.0,3132.3,3.19251]
[1731732841475,0.55,3132.8,3131.8,1.2660365]
[1731732841624,0.55,3132.8,3132.4,0.33316824]
[1731732841625,0.55,3132.5,3132.4,0.33316824]
[1731732841821,0.58876852,3132.5,3131.9,3.19294]
[1731732842177,3.78111852,3132.5,3132.1,0.33319304]
[1731732842665,0.58876852,3132.5,3132.1,1.09989304]
[1731732842849,0.58876852,3132.5,3132.1,0.33319304]
[1731732844075,0.55,3132.6,3132.1,0.33319304]
[1731732844536,0.55,3132.4,3132.1,0.33319304]
[1731732844938,0.55,3132.2,3132.1,0.33319304]
[1731732845358,0.5885419,3132.2,3132.1,0.33319304]
[1731732845984,0.0385419,3132.2,3132.1,3.52593304]
[1731732846389,0.55,3132.5,3132.1,3.52593304]
[1731732846880,0.03858473,3132.4,3132.1,3.52593304]
[1731732847377,0.03858473,3132.4,3132.2,3.19264]
[1731732847968,0.03858473,3132.4,3132.3,3.19254]
[1731732848278,0.8058,3132.9,3132.4,3.19236]
[1731732848578,0.8058,3133.2,3132.6,3.19215]
[1731732848745,0.8115,3133.5,3132.9,3.19192]
[1731732849358,0.8115,3133.5,3133.0,3.19173]
[1731732849516,4.00282,3133.5,3132.8,3.19196]
[1731732849672,0.8115,3133.5,3132.5,3.0]